bitfinex-derivatives/quotes_SOLF0:USTF0_20251109
["timestamp","ask_amount","ask_price","bid_price","bid_amount"]
[1762683364508,4.91101668,158.13,158.12,3.04]
[1762683364710,0.04031413,158.13,158.12,3.04]
[1762683367111,2.33031413,158.13,158.1,3.04]
[1762683367413,0.04031413,158.13,158.1,3.04]
[1762683369020,0.04031413,158.13,158.12,3.04]
[1762683371121,0.04031413,158.13,158.1,3.04]
[1762683371321,4.91558142,158.13,158.1,3.04]
[1762683371620,0.04031413,158.13,158.1,3.04]
[1762683372613,0.04031413,158.13,158.12,3.04]
[1762683381320,4.93662784,158.13,158.12,3.04]
[1762683388031,4.93662784,158.13,158.12,8.7332]
[1762683391939,4.94414062,158.13,158.12,3.04]
[1762683393140,2.28,158.12,158.09,2.98153614]
[1762683393335,4.90382649,158.11,158.09,8.67553614]
[1762683393530,4.90382649,158.1,158.09,8.67553614]
[1762683396940,7.18382649,158.1,158.09,0.04153614]
[1762683397344,7.18382649,158.1,158.04,2.94]
[1762683397345,2.28,158.09,158.04,2.94]
[1762683397549,2.28,158.07,158.04,2.94]
[1762683398445,2.32240648,158.07,158.04,2.9839796]
[1762683399053,2.32240648,158.07,158.04,8.6799796]
[1762683399247,2.32240648,158.07,158.05,2.94]
[1762683403342,0.04240648,158.07,158.05,8.6356]
[1762683403548,0.04240648,158.07,158.06,2.94]
[1762683407437,2.33240648,158.07,158.04,0.0439796]
[1762683407949,7.9855,158.06,158.04,0.0439796]
[1762683408148,2.29,158.05,158.04,0.0439796]
[1762683408446,0.04240648,158.07,158.04,3.2139796]
[1762683409548,0.04240648,158.07,158.06,3.17]
[1762683411951,0.04240648,158.07,158.04,0.0439796]
[1762683412146,2.33240648,158.07,158.05,3.17]
[1762683412653,2.33240648,158.07,158.04,3.2139796]
[1762683412955,2.33240648,158.07,158.04,8.9099796]
[1762683413754,2.33240648,158.07,158.04,3.2139796]
[1762683415255,2.33240648,158.07,158.04,8.9099796]
[1762683416250,2.33240648,158.07,158.04,3.2139796]
[1762683418052,8.02740648,158.07,158.04,3.2139796]
[1762683418963,2.33240648,158.07,158.04,3.2139796]
[1762683420362,8.02740648,158.07,158.04,0.0439796]
[1762683420564,2.33240648,158.07,158.04,3.2139796]
[1762683422060,0.04240648,158.07,158.04,3.2139796]
[1762683422956,2.31240648,158.07,158.04,3.2139796]
[1762683423163,2.27,158.05,158.04,0.0439796]
[1762683423360,2.27,158.05,157.98,3.11]
[1762683423361,4.81811591,158.05,157.98,3.11]
[1762683423556,12.78311591,158.07,158.02,3.11]
[1762683423857,7.965,158.07,158.02,3.11]
[1762683424361,0.04128063,158.06,158.03,3.15550516]
[1762683424556,0.04324956,158.06,158.03,3.15149531]
[1762683425362,0.04324956,158.06,158.04,3.11]
[1762683425753,2.31324956,158.06,158.03,0.04149531]
[1762683426062,2.27,158.04,158.03,0.04149531]
[1762683426260,7.08811591,158.04,158.03,0.04149531]
[1762683426460,2.27,158.04,158.03,0.04149531]
[1762683426661,2.27,158.03,157.98,3.11]
[1762683426957,4.81811591,158.03,157.95,195.17881249]
[1762683427152,2.27,158.02,157.95,195.17881249]
[1762683427563,0.04314619,158.0,157.97,0.04181072]
[1762683427756,2.31314619,158.0,157.97,0.04181072]
[1762683429055,2.27,157.99,157.97,0.04181072]
[1762683429656,7.968,157.99,157.97,0.04181072]
[1762683429856,2.27,157.98,157.97,0.04181072]
[1762683430668,2.27,157.98,157.97,0.0026247]
[1762683438671,2.31314619,158.0,157.97,0.0026247]
[1762683439774,2.27,157.98,157.97,0.0026247]
[1762683441168,8.34811591,157.98,157.97,0.0026247]
[1762683441474,33.23708284,157.98,157.97,0.0026247]
[1762683442276,27.37811591,157.98,157.97,0.0026247]
[1762683445269,33.23708284,157.98,157.97,0.0026247]
[1762683445470,27.37811591,157.98,157.97,0.0026247]
[1762683446068,35.14081515,157.98,157.97,0.0026247]
[1762683447180,2.27,157.9,157.77,3.11]
[1762683447681,2.27,157.9,157.83,3.11]
[1762683447876,7.9719,157.88,157.83,3.11]
[1762683448079,7.9719,157.88,157.84,3.15867239]
[1762683448080,0.04561815,157.87,157.84,3.15867239]
[1762683448576,0.04561815,157.87,157.84,4.41867239]
[1762683449076,8.01791815,157.87,157.84,3.15867239]
[1762683449277,2.31561815,157.87,157.84,0.04867239]
[1762683449473,7.9726,157.86,157.84,0.04867239]
[1762683449676,2.27,157.85,157.84,0.04867239]
[1762683451082,2.22,157.8,157.75,3.11]
[1762683451280,2.22,157.8,157.67,3.11]
[1762683452182,2.29015718,157.75,157.72,0.04240361]
[1762683452777,2.29015718,157.75,157.72,3.22240361]
[1762683453885,2.29015718,157.75,157.72,0.04240361]
[1762683455386,2.25,157.74,157.72,0.04240361]
[1762683456977,7.9571,157.74,157.72,0.04240361]
[1762683457183,2.25,157.73,157.72,0.04240361]
[1762683459900,2.25,157.74,157.72,0.04240361]
[1762683461997,0.04015718,157.75,157.72,3.22240361]
[1762683462789,2.29015718,157.75,157.72,3.22240361]
[1762683463598,0.04015718,157.75,157.72,3.22240361]
[1762683464300,2.29015718,157.75,157.72,0.04240361]
[1762683464796,0.04015718,157.75,157.72,3.22240361]
[1762683465297,2.29015718,157.75,157.72,3.22240361]
[1762683465497,2.29015718,157.75,157.72,0.04240361]
[1762683465889,7.99685718,157.75,157.72,0.04240361]
[1762683466095,2.25,157.74,157.72,0.04240361]
[1762683466998,7.957,157.74,157.72,0.04240361]
[1762683467195,2.25,157.73,157.72,0.04240361]
[1762683471796,7.02638369,157.73,157.72,0.04240361]
[1762683476703,7.02638369,157.73,157.57,11.42600694]
[1762683476704,2.2,157.69,157.58,3.07]
[1762683476909,2.2,157.67,157.58,3.07]
[1762683477107,2.2,157.65,157.58,3.07]
[1762683477305,6.97638369,157.64,157.58,3.07]
[1762683477513,2.2,157.61,157.57,6.94e-06]
[1762683477901,2.24417215,157.61,157.57,0.04395381]
[1762683478099,2.2,157.58,157.57,0.04395381]
[1762683480113,4.77638369,157.6,157.57,3.11395381]
[1762683480314,2.24417215,157.61,157.57,3.11395381]
[1762683480919,6.97638369,157.6,157.57,0.04395381]
[1762683481111,2.2,157.58,157.57,0.04395381]
[1762683481314,6.97638369,157.58,157.57,0.04395381]
[1762683482613,6.97638369,157.58,157.45,3.02]
[1762683482614,2.15,157.52,157.45,3.02]
[1762683483209,2.15,157.51,157.45,3.02]
[1762683483608,2.19603253,157.5,157.45,3.02]
[1762683484706,0.04603253,157.5,157.45,3.02]
[1762683485714,0.04603253,157.5,157.46,3.02]
[1762683485910,0.04603253,157.5,157.46,8.7368]
[1762683486111,0.04603253,157.5,157.47,3.02]
[1762683489413,4.77638369,157.58,157.49,3.02]
[1762683490019,10.48958369,157.57,157.5,3.02]
[1762683490215,5.7132,157.57,157.5,3.02]
[1762683490411,0.04426378,157.55,157.52,0.04757867]
[1762683490616,2.19,157.54,157.52,0.04757867]
[1762683491214,6.96638369,157.54,157.52,0.04757867]
[1762683491415,6.96638369,157.53,157.52,0.04757867]
[1762683492614,4.77638369,157.53,157.52,0.04757867]
[1762683492822,4.77638369,157.54,157.52,3.06757867]
[1762683493013,0.04426378,157.55,157.52,3.06757867]
[1762683493208,4.82064747,157.55,157.52,3.06757867]
[1762683493410,4.77638369,157.54,157.52,0.04757867]
[1762683493614,4.77638369,157.53,157.52,0.04757867]
[1762683493825,6.96638369,157.53,157.52,0.04757867]
[1762683494716,4.77638369,157.53,157.52,0.04757867]
[1762683495617,4.77638369,157.53,157.52,3.06757867]
[1762683495811,4.77638369,157.53,157.52,0.04757867]
[1762683497828,12.68674482,157.53,157.52,0.04757867]
[1762683498420,13.94674482,157.53,157.52,0.04757867]
[1762683499418,12.68674482,157.53,157.52,0.04757867]
[1762683499614,6.96638369,157.53,157.52,0.04757867]
[1762683499817,4.77638369,157.53,157.52,0.04757867]
[1762683500214,6.96638369,157.53,157.52,0.04757867]
[1762683502524,4.77638369,157.53,157.52,0.04757867]
[1762683502730,4.77638369,157.54,157.52,0.04757867]
[1762683503023,4.82064747,157.55,157.52,3.06757867]
[1762683503328,0.04426378,157.55,157.52,3.06757867]
[1762683507931,0.04426378,157.55,157.52,8.78227867]
[1762683508228,0.04426378,157.55,157.53,3.02]
[1762683508431,2.23426378,157.55,157.52,0.04757867]
[1762683508933,5.7142,157.54,157.52,0.04757867]
[1762683509327,2.19,157.53,157.52,0.04757867]
[1762683509627,6.96638369,157.53,157.52,0.04757867]
[1762683511434,4.77638369,157.53,157.52,0.04757867]
[1762683511628,4.77638369,157.54,157.52,0.04757867]
[1762683511830,2.25426378,157.55,157.52,0.04757867]
[1762683512139,4.82064747,157.55,157.52,3.13757867]
[1762683512335,0.04426378,157.55,157.52,3.13757867]
[1762683514034,0.04426378,157.55,157.53,3.09]
[1762683515632,0.04426378,157.55,157.53,8.8042]
[1762683515939,0.04426378,157.55,157.54,3.09]
[1762683516434,13.65429613,157.62,157.56,3.09]
[1762683516639,7.08761739,157.61,157.56,3.09]
[1762683516943,2.21,157.59,157.53,3.09]
[1762683517136,12.82061352,157.58,157.52,3.09]
[1762683517340,4.92257326,157.57,157.54,3.09]
[1762683517535,4.87761739,157.56,157.54,3.09]
[1762683517739,0.04495587,157.57,157.54,3.09]
[1762683518327,0.04495587,157.57,157.56,3.09]
[1762683518535,4.93222254,157.57,157.56,3.09]
[1762683522236,4.93222254,157.57,157.54,3.09]
[1762683522437,4.88726667,157.56,157.54,3.09]
[1762683522642,4.88726667,157.55,157.54,3.09]
[1762683522940,4.88726667,157.55,157.53,0.04537097]
[1762683523134,4.88726667,157.54,157.53,3.13537097]
[1762683523532,4.88726667,157.54,157.53,0.04537097]
[1762683523932,4.88726667,157.54,157.53,3.13537097]
[1762683524135,4.88726667,157.54,157.53,0.04537097]
[1762683527843,4.88726667,157.54,157.53,3.17537097]
[1762683528145,4.90802572,157.56,157.53,3.17537097]
[1762683528447,0.04495587,157.57,157.53,3.17537097]
[1762683528745,4.908623,157.56,157.54,3.13]
[1762683528948,0.04495587,157.57,157.54,3.13]
[1762683529142,4.90860052,157.56,157.54,3.13]
[1762683529342,0.04495587,157.57,157.54,3.13]
[1762683529540,4.90921043,157.56,157.54,3.13]
[1762683529742,7.11841331,157.55,157.53,0.04537097]
[1762683529939,4.90841331,157.54,157.53,0.04537097]
[1762683531446,4.90841331,157.56,157.53,3.17537097]
[1762683532544,0.04495587,157.57,157.53,3.17537097]
[1762683533847,0.04495587,157.57,157.55,3.13]
[1762683535045,0.04495587,157.57,157.55,8.8437]
[1762683535342,0.04495587,157.57,157.56,3.13]
[1762683536946,0.04495587,157.57,157.53,3.17537097]
[1762683537646,0.04495587,157.57,157.56,3.13]
[1762683539644,10.6198932,157.63,157.58,3.13]
[1762683540243,4.9088932,157.63,157.59,3.13]
[1762683540747,4.95522763,157.63,157.59,3.17403322]
[1762683541047,0.04633443,157.63,157.59,3.17403322]
[1762683542342,2.25633443,157.63,157.59,3.17403322]
[1762683542848,0.04633443,157.63,157.59,8.88623322]
[1762683543048,0.04633443,157.63,157.6,3.07]
[1762683545352,0.04633443,157.63,157.6,8.7818]
[1762683546852,0.04633443,157.63,157.61,8.7814]
[1762683547154,0.04633443,157.63,157.62,3.07]
[1762683552266,2.25633443,157.63,157.59,0.04403322]
[1762683553850,2.21,157.6,157.59,0.04403322]
[1762683556357,2.21,157.6,157.52,3.07]
[1762683556358,2.21,157.57,157.52,3.07]
[1762683556558,2.21,157.55,157.42,3.07]
[1762683556748,2.21,157.52,157.47,3.07]
[1762683557157,2.21,157.52,157.48,0.04738233]
[1762683557362,0.04732017,157.51,157.49,3.07]
[1762683566275,0.04732017,157.51,157.5,3.07]
[1762683567179,5.7129,157.58,157.48,0.04738233]
[1762683567180,4.85356403,157.6,157.53,3.07]
[1762683567476,7.11356403,157.61,157.53,3.07]
[1762683567678,5.7125,157.59,157.53,3.07]
[1762683568273,2.26,157.55,157.54,0.04402614]
[1762683568479,2.26,157.55,157.42,3.07]
[1762683568673,7.9744,157.54,157.46,3.07]
[1762683568873,2.26,157.54,157.46,3.07]
[1762683569272,5.7146,157.53,157.46,3.07]
[1762683569479,0.04851536,157.51,157.48,3.11008471]
[1762683573283,2.30851536,157.51,157.48,0.04008471]
[1762683573475,0.04851536,157.51,157.48,3.09008471]
[1762683576989,2.30851536,157.51,157.48,0.04008471]
[1762683577782,7.9757,157.5,157.48,0.04008471]
[1762683578277,2.26,157.49,157.48,0.04008471]
[1762683580984,4.82580631,157.54,157.48,3.09008471]
[1762683581184,2.26,157.55,157.48,3.09008471]
[1762683581678,2.26,157.55,157.48,8.80618471]
[1762683581883,2.26,157.55,157.49,3.05]
[1762683582187,0.04175974,157.53,157.49,3.05]
[1762683582381,0.04507908,157.53,157.52,3.05]
[1762683582588,2.26,157.59,157.52,3.05]
[1762683583689,0.04750614,157.57,157.54,0.04251173]
[1762683584082,8.02070614,157.57,157.54,0.04251173]
[1762683585078,2.30750614,157.57,157.54,0.04251173]
[1762683585589,8.02060614,157.57,157.54,0.04251173]
[1762683587084,2.26,157.55,157.54,0.04251173]
[1762683587393,5.7135,157.56,157.54,0.04251173]
[1762683587588,2.26,157.56,157.54,0.04251173]
[1762683587789,0.04750614,157.57,157.54,0.04251173]
[1762683587992,0.04750614,157.57,157.54,3.26251173]
[1762683591794,2.26,157.56,157.54,0.04251173]
[1762683592296,2.26,157.56,157.47,3.22]
[1762683592490,7.9735,157.56,157.49,3.22]
[1762683593294,0.04735744,157.54,157.52,3.22]
[1762683593491,0.04069507,157.55,157.52,3.22]
[1762683595096,8.01469507,157.55,157.51,0.04115515]
[1762683596000,8.01469507,157.55,157.51,3.26115515]
[1762683596394,5.7142,157.54,157.51,3.26115515]
[1762683596794,2.30069507,157.55,157.51,0.04115515]
[1762683596997,2.26,157.52,157.51,0.04115515]
[1762683597798,2.26,157.49,157.45,3.22]
[1762683599011,2.30110306,157.49,157.45,3.26171367]
[1762683599400,0.04110306,157.49,157.45,3.26171367]
[1762683601101,0.04110306,157.49,157.46,3.22]
[1762683602698,4.82580631,157.56,157.48,3.02]
[1762683602904,4.82580631,157.57,157.48,3.02]
[1762683603103,4.82580631,157.56,157.48,3.02]
[1762683603307,4.82580631,157.58,157.51,3.02]
[1762683603506,4.82580631,157.57,157.51,3.02]
[1762683603709,4.86912951,157.56,157.53,3.02]
[1762683603910,2.3033232,157.56,157.52,0.04555258]
[1762683604213,2.26,157.54,157.52,0.04555258]
[1762683604414,12.80000631,157.54,157.52,0.04555258]
[1762683604707,7.9742,157.54,157.52,0.04555258]
[1762683604900,12.80000631,157.54,157.52,0.04555258]
[1762683605101,7.9742,157.54,157.52,0.04555258]
[1762683605299,12.80000631,157.54,157.52,0.04555258]
[1762683605604,7.9742,157.54,157.52,0.04555258]
[1762683605805,4.82580631,157.53,157.52,0.04555258]
[1762683606003,7.9742,157.54,157.52,0.04555258]
[1762683606213,12.80000631,157.54,157.52,0.04555258]
[1762683606404,7.9742,157.54,157.52,0.04555258]
[1762683606600,12.80000631,157.54,157.52,0.04555258]
[1762683606813,7.9742,157.54,157.52,0.04555258]
[1762683607109,12.80000631,157.54,157.52,0.04555258]
[1762683607313,7.9742,157.54,157.52,0.04555258]
[1762683607502,12.80000631,157.54,157.52,0.04555258]
[1762683607699,7.9742,157.54,157.52,0.04555258]
[1762683607910,12.80000631,157.54,157.52,0.04555258]
[1762683608212,2.26,157.54,157.52,0.04555258]
[1762683608710,7.08580631,157.54,157.52,0.04555258]
[1762683608900,2.26,157.54,157.52,0.04555258]
[1762683609099,7.08580631,157.54,157.52,0.04555258]
[1762683609505,2.26,157.54,157.52,0.04555258]
[1762683610612,4.82580631,157.55,157.52,3.06555258]
[1762683610811,4.86912951,157.56,157.52,3.06555258]
[1762683611410,4.86912951,157.56,157.52,8.78035258]
[1762683611604,2.26,157.55,157.52,0.04555258]
[1762683611915,2.26,157.54,157.52,0.04555258]
[1762683612316,7.08580631,157.54,157.52,0.04555258]
[1762683612517,2.26,157.54,157.52,0.04555258]
[1762683612714,7.08580631,157.54,157.52,0.04555258]
[1762683613018,7.9744,157.54,157.52,0.04555258]
[1762683613218,4.82580631,157.53,157.52,0.04555258]
[1762683613907,7.9744,157.54,157.52,0.04555258]
[1762683614112,12.80020631,157.54,157.52,0.04555258]
[1762683614313,7.9744,157.54,157.52,0.04555258]
[1762683614513,4.82580631,157.54,157.52,3.06555258]
[1762683614719,4.82580631,157.55,157.52,3.06555258]
[1762683615920,10.53960631,157.55,157.52,3.06555258]
[1762683616714,10.54010631,157.54,157.52,0.04555258]
[1762683617026,4.82580631,157.54,157.52,0.04555258]
[1762683617223,12.79970631,157.55,157.52,0.04555258]
[1762683618021,5.7139,157.55,157.52,3.06555258]
[1762683618619,4.86912951,157.56,157.52,3.06555258]
[1762683618920,0.0433232,157.56,157.52,3.06555258]
[1762683619121,4.86912951,157.56,157.52,3.06555258]
[1762683619323,0.0433232,157.56,157.52,3.06555258]
[1762683619520,4.86912951,157.56,157.52,3.06555258]
[1762683619722,0.0433232,157.56,157.52,3.06555258]
[1762683619915,4.86912951,157.56,157.52,3.06555258]
[1762683620125,5.7567232,157.56,157.52,3.06555258]
[1762683620428,12.84252951,157.56,157.52,3.06555258]
[1762683620633,8.0167232,157.56,157.52,3.06555258]
[1762683621023,12.84252951,157.56,157.52,3.06555258]
[1762683621231,2.26,157.54,157.52,0.04555258]
[1762683621929,7.08580631,157.54,157.52,0.04555258]
[1762683622124,2.26,157.54,157.52,0.04555258]
[1762683622331,10.54000631,157.54,157.52,0.04555258]
[1762683622629,5.7142,157.54,157.52,0.04555258]
[1762683623428,7.08580631,157.55,157.52,0.04555258]
[1762683624231,12.80000631,157.54,157.52,0.04555258]
[1762683624425,4.82580631,157.53,157.52,0.04555258]
[1762683624821,7.08580631,157.53,157.52,0.04555258]
[1762683626129,7.08580631,157.53,157.52,0.00072188]
[1762683627427,12.88084382,157.53,157.52,0.00072188]
[1762683627816,33.20084382,157.53,157.52,0.00072188]
[1762683628025,27.40580631,157.53,157.52,0.00072188]
[1762683629928,8.34580631,157.53,157.52,0.00072188]
[1762683630628,35.16850555,157.53,157.52,0.00072188]
[1762683633239,27.40580631,157.53,157.52,0.00072188]
[1762683633430,8.34580631,157.53,157.52,0.00072188]
[1762683633632,12.90036296,157.53,157.52,0.00072188]
[1762683634935,31.96036296,157.53,157.52,0.00072188]
[1762683636738,12.90036296,157.53,157.52,0.00072188]
[1762683636943,7.08580631,157.53,157.52,0.00072188]
[1762683637843,4.82580631,157.53,157.52,0.00072188]
[1762683638045,12.90036296,157.53,157.52,0.00072188]
[1762683638348,12.90088945,157.53,157.52,0.00072188]
[1762683638946,26.14580631,157.53,157.52,0.00072188]
[1762683639348,33.90850555,157.53,157.52,0.00072188]
[1762683639550,2.26,157.49,157.43,2.91]
[1762683639853,2.26,157.47,157.39,2.91]
[1762683640052,5.7179,157.44,157.39,2.91]
[1762683640253,2.26,157.47,157.39,2.91]
[1762683640550,4.82580631,157.46,157.39,2.91]
[1762683640751,0.04496449,157.45,157.42,2.91]
[1762683641360,5.7179,157.44,157.42,2.91]
[1762683641543,2.26,157.44,157.41,0.04549595]
[1762683641943,7.9783,157.43,157.41,0.04549595]
[1762683642651,2.26,157.42,157.41,0.04549595]
[1762683648348,2.22,157.35,157.29,2.96]
[1762683649353,2.22,157.35,157.28,5.7234]
[1762683649354,0.04709329,157.34,157.31,2.96]
[1762683649855,0.04709329,157.34,157.32,4.24]
[1762683650155,5.7183,157.43,157.36,2.96]
[1762683650358,2.26,157.44,157.36,2.96]
[1762683650955,2.30405488,157.42,157.38,0.04268006]
[1762683651352,5.719,157.41,157.38,0.04268006]
[1762683651659,7.979,157.41,157.38,0.04268006]
[1762683651950,7.9793,157.4,157.38,0.04268006]
[1762683652653,2.30405488,157.42,157.38,3.00268006]
[1762683653048,0.04405488,157.42,157.38,3.00268006]
[1762683658163,0.04405488,157.42,157.4,2.96]
[1762683658957,0.04405488,157.42,157.4,8.6791]
[1762683659159,0.04405488,157.42,157.41,2.96]
[1762683660860,7.05969472,157.5,157.41,2.96]
[1762683661058,2.26,157.5,157.41,2.96]
[1762683661263,2.26,157.5,157.42,2.96]
[1762683661967,0.04262401,157.48,157.45,3.02]
[1762683662260,0.04086543,157.48,157.45,3.06207359]
[1762683662666,0.00086543,157.48,157.45,3.06207359]
[1762683663162,0.00086543,157.48,157.47,3.02]
[1762683663360,7.06969472,157.56,157.47,3.02]
[1762683663564,2.27,157.56,157.47,3.02]
[1762683664366,0.04659761,157.53,157.51,3.02]
[1762683664555,0.04548927,157.54,157.51,3.02]
[1762683667564,0.04548927,157.54,157.52,5.7147]
[1762683667760,0.04548927,157.54,157.53,3.02]
[1762683670468,81.26,157.59,157.53,3.02]
[1762683671271,83.57,157.59,157.53,3.02]
[1762683671472,2.35760978,157.58,157.54,3.06333672]
[1762683671762,0.04760978,157.58,157.54,3.06333672]
[1762683674764,0.04760978,157.58,157.54,8.77733672]
[1762683674961,0.04760978,157.58,157.55,3.02]
[1762683677468,2.35760978,157.58,157.54,3.06333672]
[1762683677768,2.35760978,157.58,157.54,0.04333672]
[1762683677974,2.31,157.55,157.54,0.04333672]
[1762683678366,5.7135,157.56,157.54,0.04333672]
[1762683678565,8.0235,157.56,157.54,0.04333672]
[1762683680064,2.31,157.55,157.54,0.04333672]
[1762683680376,8.0245,157.53,157.48,3.02]
[1762683681177,2.31,157.53,157.48,3.02]
[1762683681477,2.31,157.51,157.49,0.04253021]
[1762683681664,2.31,157.51,157.48,0.04321715]
[1762683682268,2.31,157.49,157.48,0.04321715]
[1762683683278,2.31,157.46,157.39,3.02]
[1762683684271,23.86004186,157.49,157.41,0.04219177]
[1762683684272,2.31,157.42,157.41,0.04219177]
[1762683685776,0.04335748,157.44,157.41,0.04219177]
[1762683686085,2.35335748,157.44,157.41,3.06219177]
[1762683686675,2.35335748,157.44,157.41,0.04219177]
[1762683686977,8.07125748,157.44,157.41,0.04219177]
[1762683688172,0.04335748,157.44,157.41,3.06219177]
[1762683689177,0.04335748,157.44,157.42,3.02]
[1762683691484,2.35,157.54,157.44,3.02]
[1762683691883,2.35,157.54,157.48,2.92]
[1762683692388,0.04073056,157.53,157.49,2.96549045]
[1762683695692,2.38073056,157.53,157.49,0.04549045]
[1762683695881,2.38073056,157.53,157.49,2.96549045]
[1762683697094,8.09533056,157.53,157.49,2.96549045]
[1762683697991,2.34,157.52,157.49,2.96549045]
[1762683699093,2.34,157.51,157.49,0.04549045]
[1762683699289,2.38073056,157.53,157.49,2.96549045]
[1762683699488,0.04073056,157.53,157.49,2.96549045]
[1762683701696,2.38073056,157.53,157.49,2.96549045]
[1762683703001,5.7149,157.52,157.49,2.96549045]
[1762683703384,2.38073056,157.53,157.49,0.04549045]
[1762683703698,2.34,157.5,157.49,0.04549045]
[1762683704596,3.6,157.5,157.49,0.04549045]
[1762683704796,2.34,157.5,157.49,0.04549045]
[1762683704998,7.16724325,157.5,157.49,0.04549045]
[1762683705193,2.34,157.5,157.49,0.04549045]
[1762683705392,3.6,157.5,157.49,0.04549045]
[1762683705891,8.42724325,157.5,157.49,0.04549045]
[1762683706292,2.3,157.46,157.4,3.03]
[1762683706790,5.7186,157.42,157.37,3.03]
[1762683706987,7.12724325,157.46,157.37,3.03]
[1762683707193,2.3,157.46,157.37,3.03]
[1762683707394,0.04149845,157.43,157.4,3.07693108]
[1762683707699,0.04645395,157.43,157.4,3.07780755]
[1762683710997,5.76465395,157.43,157.4,3.07780755]
[1762683711502,0.04645395,157.43,157.4,3.07780755]
[1762683712306,2.3,157.42,157.4,0.04780755]
[1762683712504,3.58,157.42,157.28,3.03]
[1762683712805,2.25,157.36,157.28,3.03]
[1762683713406,5.7215,157.34,157.28,3.03]
[1762683713607,0.0409888,157.33,157.29,3.0712609]
[1762683714105,2.25,157.32,157.29,0.0412609]
[1762683715305,0.0409888,157.33,157.29,3.0712609]
[1762683717410,2.2909888,157.33,157.29,3.0712609]
[1762683718211,5.7223,157.32,157.29,3.0712609]
[1762683718611,2.25,157.31,157.29,0.0412609]
[1762683720914,2.2909888,157.33,157.29,3.0712609]
[1762683721311,2.2909888,157.33,157.29,0.0412609]
[1762683721510,2.25,157.3,157.29,0.0412609]
[1762683726823,2.25,157.32,157.29,0.0412609]
[1762683727414,0.0409888,157.33,157.29,3.1512609]
[1762683728018,0.0409888,157.33,157.31,3.11]
[1762683728714,0.0409888,157.33,157.29,3.1512609]
[1762683728919,2.2909888,157.33,157.29,0.0412609]
[1762683729222,0.0409888,157.33,157.29,3.1512609]
[1762683730018,0.0409888,157.33,157.29,8.8743609]
[1762683730216,0.0409888,157.33,157.3,3.11]
[1762683732417,2.25,157.4,157.31,3.11]
[1762683732829,2.25,157.42,157.34,3.11]
[1762683733524,0.04618671,157.4,157.36,3.15189008]
[1762683733726,0.04588908,157.4,157.36,3.15272475]
[1762683736324,0.04588908,157.4,157.39,3.11]
[1762683736723,7.04264847,157.48,157.39,3.11]
[1762683736917,5.7176,157.45,157.4,3.11]
[1762683737126,2.25,157.44,157.28,3.11]
[1762683737625,2.25,157.47,157.38,3.11]
[1762683737831,4.79264847,157.48,157.38,3.11]
[1762683738027,0.04797034,157.44,157.42,3.11]
[1762683738230,0.04043387,157.45,157.42,8.8283]
[1762683738532,0.04043387,157.45,157.43,3.11]
[1762683748541,2.29043387,157.45,157.41,0.04654316]
[1762683749541,5.7179,157.44,157.41,3.15654316]
[1762683749737,0.04043387,157.45,157.41,3.15654316]
[1762683750741,0.04043387,157.45,157.44,3.11]
[1762683753042,2.29043387,157.45,157.41,0.04654316]
[1762683753345,2.29043387,157.45,157.41,3.05654316]
[1762683753642,0.04043387,157.45,157.41,3.05654316]
[1762683754638,5.7155,157.51,157.46,3.01]
[1762683755146,2.25,157.54,157.46,3.01]
[1762683755339,5.7147,157.53,157.49,3.01]
[1762683755644,0.04273616,157.53,157.49,3.0585326]
[1762683755841,0.04273616,157.53,157.5,5.7155]
[1762683756035,0.04273616,157.53,157.51,3.01]
[1762683757947,0.04273616,157.53,157.49,3.0585326]
[1762683758246,2.33273616,157.53,157.49,3.0585326]
[1762683758541,0.04273616,157.53,157.49,3.0585326]
[1762683759947,2.33273616,157.53,157.49,3.0585326]
[1762683760949,2.33273616,157.53,157.49,0.0485326]
[1762683761453,2.29,157.5,157.49,0.0485326]
[1762683761753,2.29,157.5,157.43,3.01]
[1762683762055,2.29,157.5,157.44,3.01]
[1762683762257,2.29,157.5,157.35,3.01]
[1762683762758,0.04531041,157.44,157.42,3.01]
[1762683762958,0.04023489,157.45,157.42,3.01]
[1762683763253,0.04023489,157.45,157.42,3.05355269]